bitfinex/quotes_BTCUSD_20250421
["timestamp","ask_amount","ask_price","bid_price","bid_amount"]
[1745228389899,0.00124901,87239.0,87219.0,0.34]
[1745228390100,0.00124901,87239.0,87221.0,0.34]
[1745228390302,0.0453,87238.0,87223.0,0.34]
[1745228390507,0.0453,87238.0,87223.0,0.45944791]
[1745228390832,0.0453,87238.0,87203.0,0.0495]
[1745228391006,0.0453,87238.0,87206.0,0.09185741]
[1745228391215,0.0453,87238.0,87208.0,0.34]
[1745228391409,0.0453,87238.0,87210.0,0.34]
[1745228391609,0.0453,87238.0,87212.0,0.34]
[1745228391819,0.0479,87237.0,87214.0,0.34]
[1745228392039,0.0479,87237.0,87215.0,0.11944791]
[1745228392422,0.0479,87237.0,87216.0,0.34]
[1745228392569,0.0479,87237.0,87218.0,0.34]
[1745228392770,0.0479,87237.0,87218.0,0.45944791]
[1745228394866,0.0479,87237.0,87218.0,0.4678289]
[1745228396570,0.09792,87236.0,87218.0,0.4678289]
[1745228398686,0.09792,87236.0,87218.0,0.45944791]
[1745228399926,0.09778991,87236.0,87218.0,0.45944791]
[1745228401456,0.09777078,87236.0,87218.0,0.45944791]
[1745228404320,0.09777078,87236.0,87218.0,0.46800039]
[1745228408223,0.09777078,87236.0,87218.0,0.45944791]
[1745228408419,0.09777078,87236.0,87219.0,0.00229279]
[1745228409507,0.09777078,87236.0,87218.0,0.45944791]
[1745228409916,0.0479,87237.0,87218.0,0.45944791]
[1745228411194,0.0479,87237.0,87219.0,0.00229279]
[1745228411619,0.0479,87237.0,87218.0,0.45944791]
[1745228411819,0.09792,87236.0,87218.0,0.45944791]
[1745228413609,0.09792,87236.0,87218.0,0.46795514]
[1745228414450,0.09792,87236.0,87219.0,0.0022928]
[1745228414648,0.03548439,87236.0,87220.0,0.34]
[1745228414858,0.03231439,87236.0,87220.0,0.45944791]
[1745228415061,0.0479,87237.0,87220.0,0.45944791]
[1745228417402,0.0479,87237.0,87220.0,0.11944791]
[1745228418762,0.0479,87237.0,87221.0,0.11944791]
[1745228419103,0.0495,87236.0,87221.0,0.11944791]
[1745228419523,0.0495,87236.0,87222.0,0.34]
[1745228419726,0.0495,87236.0,87224.0,0.34]
[1745228420135,0.0495,87236.0,87226.0,0.34]
[1745228420338,0.0495,87236.0,87227.0,0.00229252]
[1745228420720,0.0495,87236.0,87226.0,0.16121948]
[1745228421127,0.0495,87236.0,87227.0,0.00229253]
[1745228421331,0.0495,87236.0,87226.0,0.00229253]
[1745228422188,0.02543001,87236.0,87226.0,0.00229253]
[1745228422472,0.02543001,87236.0,87225.0,0.11944791]
[1745228423022,0.02543001,87236.0,87226.0,0.34]
[1745228424240,0.02543001,87236.0,87227.0,0.00229253]
[1745228424595,0.0479,87237.0,87227.0,0.00229253]
[1745228424983,0.03567,87237.0,87227.0,0.00229253]
[1745228429124,0.00124901,87239.0,87227.0,0.00229253]
[1745228430032,4e-05,87237.0,87227.0,0.00229253]
[1745228431562,4e-05,87237.0,87226.0,0.34]
[1745228434216,4e-05,87237.0,87227.0,0.00229251]
[1745228436798,4e-05,87237.0,87226.0,0.34]
[1745228437092,4e-05,87237.0,87227.0,0.00229251]
[1745228437293,0.0457,87236.0,87203.0,0.0487]
[1745228437519,0.0518926,87235.0,87205.0,0.34]
[1745228437863,0.0518926,87235.0,87207.0,0.34]
[1745228438016,0.0518926,87235.0,87209.0,0.34]
[1745228438224,0.0518926,87235.0,87211.0,0.34]
[1745228438425,0.0518926,87235.0,87213.0,0.34]
[1745228438630,0.0518926,87235.0,87215.0,0.34]
[1745228439049,0.0518926,87235.0,87216.0,0.00229281]
[1745228439280,0.0496,87235.0,87216.0,0.00229281]
[1745228441772,0.0022926,87234.0,87215.0,0.34]
[1745228442889,0.0022926,87234.0,87215.0,0.34846729]
[1745228449037,0.0022926,87234.0,87215.0,0.34]
[1745228449340,0.0496,87233.0,87215.0,0.34]
[1745228449512,0.0022926,87232.0,87215.0,0.34]
[1745228456851,0.0022926,87232.0,87215.0,0.34866078]
[1745228457571,0.0022926,87232.0,87215.0,0.34]
[1745228459477,0.0953,87231.0,87215.0,0.34]
[1745228461329,0.09519768,87231.0,87215.0,0.34]
[1745228462363,0.03799682,87231.0,87215.0,0.34]
[1745228462916,0.0022926,87235.0,87215.0,0.34]
[1745228463649,0.0022926,87235.0,87215.0,0.35896046]
[1745228465190,0.0457,87234.0,87215.0,0.35896046]
[1745228465357,0.0022926,87233.0,87215.0,0.35896046]
[1745228465920,0.0493,87232.0,87215.0,0.35896046]
[1745228466508,0.0022926,87231.0,87215.0,0.3677199]
[1745228467211,0.0022926,87231.0,87215.0,0.34875944]
[1745228467986,0.0022926,87231.0,87215.0,0.34]
[1745228468210,0.0022926,87231.0,87214.0,0.11944791]
[1745228468848,0.0493,87232.0,87214.0,0.11944791]
[1745228470198,0.0493,87232.0,87215.0,0.34]
[1745228470552,0.0022926,87231.0,87215.0,0.34]
[1745228473178,0.0022926,87231.0,87215.0,0.35848172]
[1745228473794,0.0022926,87231.0,87215.0,0.01848172]
[1745228474210,0.0022926,87231.0,87198.0,0.340844]
[1745228474412,0.0022926,87231.0,87215.0,0.01900314]
[1745228474610,0.0022926,87231.0,87202.0,0.34]
[1745228474753,0.0022926,87231.0,87204.0,0.34]
[1745228474983,0.0022926,87231.0,87206.0,0.34]
[1745228475194,0.0022926,87231.0,87208.0,0.34]
[1745228475409,0.0022926,87231.0,87210.0,0.34]
[1745228475765,0.0022926,87231.0,87212.0,0.34]
[1745228475902,0.0022926,87231.0,87214.0,0.34]
[1745228490593,0.0486,87230.0,87214.0,0.34]
[1745228490794,0.0022926,87229.0,87214.0,0.34]
[1745228499452,0.001,87223.0,87208.0,0.0185182]
[1745228499601,0.046,87218.0,87208.0,0.0185182]
[1745228499803,0.0472926,87217.0,87200.0,0.00935433]
[1745228500585,0.092,87214.0,87200.0,0.00935433]
[1745228500773,0.092,87208.0,87200.0,0.01954752]
[1745228500976,0.26486051,87207.0,87200.0,0.01954752]
[1745228501177,0.26256791,87207.0,87200.0,0.01954752]
[1745228501373,0.045,87205.0,87200.0,0.01954752]
[1745228501579,0.0022926,87204.0,87200.0,0.01954752]
[1745228501991,0.046,87202.0,87200.0,0.01954752]
[1745228502240,0.16774051,87201.0,87200.0,0.01975166]
[1745228502551,0.21374051,87201.0,87200.0,0.00104814]
[1745228503192,0.091,87200.0,87163.0,0.34]
[1745228503391,0.12274051,87201.0,87163.0,0.34]
[1745228503392,0.046,87197.0,87180.0,0.00013597]
[1745228503595,0.091,87195.0,87180.0,0.00013597]
[1745228503713,0.16674051,87194.0,87180.0,0.00013597]
[1745228506364,0.1666519,87194.0,87180.0,0.00013597]
[1745228506595,0.09812,87193.0,87180.0,0.00013597]
[1745228506795,0.00211538,87192.0,87180.0,0.00013597]
[1745228507457,0.00211538,87192.0,87180.0,0.01916014]
[1745228509273,0.00202312,87192.0,87180.0,0.01916014]
[1745228512608,0.00202312,87192.0,87180.0,0.00013597]
[1745228512884,0.0468,87188.0,87180.0,0.00013597]
[1745228513084,0.04963086,87187.0,87180.0,0.00013597]
[1745228513420,0.12044791,87186.0,87180.0,0.00013597]
[1745228513616,0.00193086,87185.0,87180.0,0.00013597]
[1745228516588,0.12237877,87185.0,87180.0,0.00013597]
[1745228516778,0.001,87181.0,87180.0,0.00013597]
[1745228516952,0.12237877,87181.0,87180.0,0.00013597]
[1745228517633,0.12237877,87181.0,87180.0,0.01694693]
[1745228517797,0.12237877,87181.0,87180.0,0.00013597]
[1745228518047,0.10009086,87181.0,87180.0,0.00013597]
[1745228518394,0.10009086,87181.0,87180.0,0.01755191]
[1745228520784,0.0477,87187.0,87180.0,0.01755191]
[1745228520785,0.01130603,87187.0,87180.0,0.01755191]
[1745228520986,0.09772,87186.0,87180.0,0.00013597]
[1745228523148,0.09772,87186.0,87180.0,0.01741472]
[1745228523351,0.09772,87186.0,87180.0,0.00013597]
[1745228526735,0.09772,87186.0,87180.0,0.01766509]
[1745228527076,0.09772,87186.0,87180.0,0.00013597]
[1745228537922,0.04049308,87186.0,87180.0,0.00013597]
[1745228538344,0.09772,87185.0,87180.0,0.00013597]
[1745228538547,0.04049308,87185.0,87180.0,0.00013597]
[1745228539010,0.09772,87186.0,87180.0,0.00013597]
[1745228539263,0.04049308,87186.0,87180.0,0.00013597]
[1745228539493,0.001,87199.0,87180.0,0.00013597]
[1745228539718,0.09772,87188.0,87180.0,0.00013597]
[1745228539942,0.08014,87188.0,87180.0,0.00013597]
[1745228541447,0.11944791,87198.0,87180.0,0.00013597]
[1745228541626,0.09772,87188.0,87180.0,0.00013597]
[1745228541823,0.04049308,87188.0,87180.0,0.00013597]
[1745228543789,0.09772,87189.0,87180.0,0.00013597]
[1745228544163,0.04049308,87189.0,87180.0,0.00013597]
[1745228544335,0.09772,87190.0,87180.0,0.00013597]
[1745228551630,0.05805792,87198.0,87180.0,0.00013597]
[1745228551830,0.02121545,87207.0,87183.0,0.0484]
[1745228552031,0.02121545,87207.0,87185.0,0.34]
[1745228552206,0.09768,87206.0,87186.0,0.0484]
[1745228552431,0.09768,87206.0,87185.0,0.1754616]
[1745228552630,0.09768,87206.0,87186.0,0.0475]
[1745228552973,0.09768,87206.0,87187.0,0.00229374]
[1745228553319,0.08213,87206.0,87188.0,0.11944791]
[1745228554464,0.08213,87206.0,87189.0,0.34]
[1745228554665,0.08213,87206.0,87189.0,0.45944791]
[1745228555594,0.08213,87206.0,87190.0,0.0484]
[1745228556620,0.08213,87206.0,87189.0,0.11944791]
[1745228559535,0.08213,87206.0,87189.0,0.16694791]
[1745228560828,0.08213,87206.0,87186.0,0.0475]
[1745228561411,0.001,87204.0,87186.0,0.0475]
[1745228574830,0.001,87198.0,87186.0,0.0475]
[1745228575240,0.001,87198.0,87180.0,0.00013597]
[1745228575387,0.0478,87197.0,87180.0,0.00013597]
[1745228576873,0.001,87191.0,87180.0,0.00013597]
[1745228577084,0.001,87188.0,87180.0,0.00013597]
[1745228577260,0.0478,87187.0,87180.0,0.00013597]
[1745228578429,0.001,87186.0,87180.0,0.00013597]
[1745228580580,0.0478,87187.0,87180.0,0.00013597]
[1745228580581,0.09766064,87188.0,87180.0,0.00013597]
[1745228581004,0.09764,87190.0,87180.0,0.00013597]
[1745228582446,0.00092334,87188.0,87180.0,0.00013597]
[1745228582859,0.00092334,87186.0,87180.0,0.00013597]
[1745228583824,0.09856334,87186.0,87180.0,0.00013597]
[1745228584284,0.00092334,87182.0,87180.0,0.00013597]
[1745228586367,0.00192334,87182.0,87180.0,0.00013597]
[1745228596193,0.001,87182.0,87180.0,0.00013597]
[1745228599178,0.0453,87207.0,87180.0,0.00013597]
[1745228599179,0.09768,87194.0,87181.0,0.0479]
[1745228599390,0.09768,87194.0,87182.0,0.0469]
[1745228600855,0.09109,87194.0,87182.0,0.0469]
[1745228602384,0.09860334,87198.0,87182.0,0.0469]
[1745228611077,0.09860334,87198.0,87182.0,0.0479]
[1745228613892,0.09850697,87198.0,87182.0,0.0479]
[1745228615952,0.09854697,87198.0,87182.0,0.0479]
[1745228616443,0.00082697,87195.0,87182.0,0.001]
[1745228619595,0.00086697,87195.0,87182.0,0.001]
[1745228622482,4e-05,87195.0,87182.0,0.001]
[1745228623194,0.00086697,87195.0,87182.0,0.001]
[1745228625216,0.04780697,87195.0,87182.0,0.001]
[1745228625461,0.04784697,87195.0,87182.0,0.001]
[1745228625701,0.12027488,87194.0,87193.0,0.01146881]
[1745228627804,0.13092731,87194.0,87193.0,0.01146881]
[1745228629108,0.12027488,87194.0,87193.0,0.01146881]
[1745228633604,0.09199061,87194.0,87193.0,0.01146881]
[1745228633764,0.18843345,87194.0,87193.0,0.01146881]
[1745228633962,0.18847345,87194.0,87193.0,0.01146881]
[1745228636428,0.09083345,87194.0,87193.0,0.01146881]
[1745228640833,0.09083345,87194.0,87158.0,0.3404224]
[1745228641126,0.09093734,87194.0,87163.0,0.34]
[1745228641318,0.09093734,87194.0,87165.0,0.34]
[1745228641456,0.09093734,87194.0,87165.0,0.45944791]
[1745228641667,0.048,87193.0,87165.0,0.47445275]
[1745228641904,0.16744791,87193.0,87165.0,0.47445275]
[1745228643541,0.16744791,87193.0,87166.0,0.00229423]
[1745228643720,0.16744791,87193.0,87167.0,0.34]
[1745228645502,0.16744791,87193.0,87166.0,0.0982]
[1745228645705,0.16744791,87193.0,87166.0,0.4382]
[1745228650598,0.0495,87192.0,87166.0,0.4382]
[1745228650795,0.0495,87192.0,87166.0,0.3885]
[1745228654532,0.0464,87191.0,87166.0,0.3885]
[1745228656471,0.0464,87191.0,87190.0,0.0114692]
[1745228657111,0.0464,87191.0,87166.0,0.0485]
[1745228658018,0.0464,87191.0,87190.0,0.0114692]
[1745228665702,0.04644,87191.0,87190.0,0.0114692]
[1745228668365,0.04726697,87191.0,87190.0,0.0114692]
[1745228678051,0.04196778,87194.0,87190.0,0.0114692]
[1745228679435,0.04596778,87194.0,87190.0,0.0114692]
[1745228686550,0.004,87194.0,87190.0,0.0114692]
[1745228687590,0.01067535,87216.0,87190.0,0.0114692]
[1745228687591,0.09756,87210.0,87190.0,0.001]
[1745228687767,0.09435544,87210.0,87190.0,0.001]
[1745228687968,8.837e-05,87210.0,87190.0,0.001]
[1745228688831,0.00408837,87210.0,87190.0,0.001]
[1745228689672,8.837e-05,87210.0,87190.0,0.001]
[1745228689972,0.00408837,87210.0,87190.0,0.001]
[1745228691236,0.00408837,87210.0,87192.0,0.3875]
[1745228692053,8.837e-05,87210.0,87192.0,0.3875]
[1745228692514,0.00308837,87210.0,87192.0,0.3875]
[1745228692850,8.837e-05,87210.0,87192.0,0.3875]
[1745228693036,0.00308837,87210.0,87192.0,0.3875]
[1745228698446,0.0008454,87221.0,87195.0,0.0475]
[1745228698650,0.0008454,87221.0,87197.0,0.3872]
[1745228698857,0.0008454,87221.0,87199.0,0.34]
[1745228699061,0.0008454,87221.0,87201.0,0.34]
[1745228699445,0.004,87210.0,87201.0,0.34]
[1745228701436,0.0008454,87221.0,87201.0,0.34]
[1745228701644,0.0038454,87221.0,87201.0,0.34]
[1745228703479,0.0038454,87221.0,87202.0,0.00229326]
[1745228703687,0.0038454,87221.0,87203.0,0.0472]
[1745228704470,0.0008454,87221.0,87203.0,0.0472]
[1745228704895,0.0038454,87221.0,87203.0,0.0472]
[1745228705463,0.0008454,87221.0,87203.0,0.04949326]
[1745228705667,0.0038454,87221.0,87203.0,0.04949326]
[1745228706253,0.0038454,87221.0,87203.0,0.0472]
[1745228714488,0.0038454,87221.0,87204.0,0.0498]
[1745228715262,0.0008454,87221.0,87204.0,0.0498]
[1745228715781,0.0038454,87221.0,87204.0,0.0498]
[1745228718427,0.0038454,87221.0,87205.0,0.0465]
[1745228719811,0.0008454,87221.0,87205.0,0.0465]
[1745228721125,0.0038454,87221.0,87205.0,0.0465]
[1745228721538,0.0038454,87221.0,87192.0,0.27457483]
[1745228721708,0.0038454,87221.0,87193.0,0.11944791]
[1745228722296,0.0008454,87221.0,87193.0,0.11944791]
[1745228722760,0.0038454,87221.0,87193.0,0.11944791]
[1745228723568,0.0038454,87221.0,87194.0,0.34]
[1745228723880,0.0008454,87225.0,87196.0,0.34]
[1745228724082,0.002,87249.0,87214.0,0.09185741]
[1745228724083,0.25038949,87236.0,87214.0,0.09185741]
[1745228724298,0.06723311,87236.0,87216.0,0.34]
[1745228724505,0.003,87221.0,87218.0,0.34]
[1745228724714,0.003,87221.0,87220.0,0.34]
[1745228724953,0.003,87221.0,87220.0,0.50694791]
[1745228725161,1e-08,87241.0,87220.0,0.50694791]
[1745228725362,1e-08,87241.0,87222.0,0.34]
[1745228725562,1e-08,87241.0,87224.0,0.34]
[1745228725775,0.00045313,87241.0,87226.0,0.34]
[1745228725903,0.00045313,87241.0,87228.0,0.34]
[1745228726108,0.00045313,87241.0,87229.0,0.0475]
[1745228727543,0.00245313,87241.0,87229.0,0.0475]
[1745228727753,0.00245313,87241.0,87230.0,0.12174041]
[1745228727969,0.00045313,87241.0,87230.0,0.12174041]
[1745228728214,0.00245313,87241.0,87230.0,0.12174041]
[1745228728823,0.00045313,87241.0,87230.0,0.12174041]
[1745228729016,0.00245313,87241.0,87230.0,0.12174041]
[1745228731180,0.00245313,87241.0,87231.0,0.046]
[1745228731392,0.00245313,87241.0,87232.0,0.34229243]
[1745228731619,0.00245313,87241.0,87232.0,0.45944791]
[1745228732240,0.00045313,87241.0,87232.0,0.45944791]
[1745228732435,0.00245313,87241.0,87232.0,0.45944791]
[1745228732642,0.00245313,87241.0,87233.0,0.00229229]
[1745228732869,0.00245313,87241.0,87235.0,0.34]
[1745228733073,0.00245313,87241.0,87237.0,0.34]
[1745228733480,0.00245313,87241.0,87238.0,0.00229229]
[1745228733871,0.00045313,87241.0,87238.0,0.00229229]
[1745228734179,0.00345313,87241.0,87238.0,0.00229229]
[1745228734700,0.00045313,87241.0,87237.0,0.34]
[1745228734838,0.00345313,87241.0,87237.0,0.34]
[1745228735241,0.00345313,87241.0,87237.0,0.35862089]
[1745228735670,0.0452,87259.0,87238.0,0.0022923]
[1745228735871,0.00013588,87249.0,87238.0,0.0022923]
[1745228736997,0.00013588,87249.0,87238.0,0.01087468]
[1745228737150,0.003,87241.0,87238.0,0.01087468]
[1745228737582,0.00013588,87249.0,87238.0,0.01087468]
[1745228737970,0.00313588,87249.0,87238.0,0.01087468]
[1745228739259,0.00313588,87249.0,87238.0,0.00858238]
[1745228739464,0.00313588,87249.0,87237.0,0.35862089]
[1745228740434,0.00013588,87249.0,87237.0,0.35862089]
[1745228740996,0.00313588,87249.0,87237.0,0.35862089]
[1745228741411,0.00317588,87249.0,87237.0,0.35862089]
[1745228741616,0.00317588,87249.0,87238.0,0.00229229]
[1745228741791,0.00317588,87249.0,87237.0,0.35862089]
[1745228743023,0.00017588,87249.0,87237.0,0.35862089]
[1745228743311,0.00317588,87249.0,87238.0,0.00229229]
[1745228743709,0.00017588,87249.0,87237.0,0.35862089]
[1745228744123,0.00317588,87249.0,87237.0,0.35862089]
[1745228744454,0.00317588,87249.0,87238.0,0.00229229]
[1745228744736,0.00317588,87249.0,87238.0,0.00845965]
[1745228745050,0.00306758,87249.0,87237.0,0.35862089]
[1745228745995,0.00079284,87256.0,87237.0,0.35862089]
[1745228746174,0.003,87249.0,87237.0,0.35875677]
[1745228746386,0.003,87249.0,87238.0,0.00229229]
[1745228746606,0.00079284,87256.0,87238.0,0.00229229]
[1745228746814,0.00079284,87256.0,87237.0,0.35875677]
[1745228747024,0.003,87249.0,87237.0,0.35875677]
[1745228747228,0.003,87249.0,87238.0,0.00229229]
[1745228748072,0.00079284,87256.0,87238.0,0.00229229]
[1745228748480,0.00079284,87256.0,87238.0,0.00873043]
[1745228748863,0.00079284,87256.0,87237.0,0.35875677]
[1745228749480,0.00379284,87256.0,87237.0,0.35875677]
[1745228749982,0.00079284,87256.0,87237.0,0.35875677]
[1745228750204,0.00083284,87256.0,87237.0,0.35875677]
[1745228750680,0.00383284,87256.0,87237.0,0.35875677]
[1745228750908,0.00387284,87256.0,87238.0,0.00229229]
[1745228752352,0.00087284,87256.0,87238.0,0.00229229]
[1745228752752,0.00387284,87256.0,87238.0,0.01077656]
[1745228753157,0.00387284,87256.0,87238.0,0.00229229]
[1745228753884,1e-08,87256.0,87239.0,0.0453]
[1745228754061,1e-08,87256.0,87240.0,0.00229229]
[1745228754291,1e-08,87256.0,87241.0,0.34]
[1745228754499,1e-08,87256.0,87241.0,0.45944791]
[1745228755512,0.0452,87259.0,87241.0,0.45944791]
[1745228755812,0.002,87256.0,87241.0,0.45944791]
[1745228756189,0.0452,87259.0,87241.0,0.45944791]
[1745228756592,0.002,87256.0,87241.0,0.45944791]
[1745228756792,0.002,87256.0,87242.0,0.00229216]
[1745228756989,0.002,87256.0,87241.0,0.45944791]
[1745228757397,0.0452,87259.0,87241.0,0.45944791]
[1745228758558,0.0472,87259.0,87241.0,0.45944791]
[1745228763009,0.0472,87259.0,87241.0,0.11944791]
[1745228763473,0.04724,87259.0,87241.0,0.11944791]
[1745228763646,0.04724,87259.0,87238.0,0.00860289]
[1745228763852,0.04724,87259.0,87237.0,0.01875677]
[1745228764665,0.04524,87259.0,87237.0,0.01875677]
[1745228764986,0.04724,87259.0,87237.0,0.01875677]
[1745228765366,0.04524,87259.0,87237.0,0.01875677]
[1745228765890,0.04724,87259.0,87237.0,0.01875677]
[1745228775350,0.0454,87258.0,87237.0,0.01875677]
[1745228775554,0.0476,87257.0,87237.0,0.01875677]
[1745228778464,0.0496,87257.0,87237.0,0.01875677]
[1745228786960,0.01965001,87257.0,87237.0,0.01875677]
[1745228787151,0.01965001,87257.0,87238.0,0.00229228]
[1745228787982,0.01965001,87257.0,87238.0,0.0108456]
[1745228788161,0.01765001,87257.0,87238.0,0.0108456]
[1745228788360,0.00828001,87257.0,87239.0,0.11944791]
[1745228788571,0.04231001,87258.0,87240.0,0.00229215]
[1745228788786,0.04231001,87258.0,87242.0,0.34]
[1745228788973,0.02788002,87258.0,87243.0,0.00229215]
[1745228789895,0.002,87257.0,87243.0,0.00229215]
[1745228790324,0.02788002,87258.0,87243.0,0.00229215]
[1745228790730,0.02988002,87258.0,87243.0,0.00229215]
[1745228791611,0.00648003,87258.0,87243.0,0.00229215]
[1745228791918,0.04874,87259.0,87243.0,0.00229215]
[1745228793931,0.05074,87259.0,87243.0,0.00229215]
[1745228797293,0.0454,87260.0,87244.0,0.34]
[1745228797494,0.0454,87260.0,87245.0,0.00229209]
[1745228797829,0.03052805,87260.0,87245.0,0.00229209]
[1745228798066,0.0004225,87264.0,87245.0,0.00229209]
[1745228798233,0.0004221,87271.0,87248.0,0.0489]
[1745228798432,0.002,87260.0,87250.0,0.34]
[1745228798645,0.002,87260.0,87252.0,0.34]
[1745228798844,0.002,87260.0,87253.0,0.00229189]
[1745228799669,0.0004221,87271.0,87253.0,0.00229189]
[1745228802125,0.0004221,87271.0,87254.0,0.0486]
[1745228802340,0.0004221,87271.0,87255.0,0.00229188]
[1745228803169,0.0004221,87271.0,87252.0,0.34]
[1745228805464,0.0004221,87271.0,87253.0,0.00229188]
[1745228809025,0.0004221,87271.0,87252.0,0.34]
[1745228812960,0.0004221,87271.0,87252.0,0.17997018]
[1745228818608,0.0004221,87271.0,87253.0,0.00229188]
[1745228818950,0.0004221,87271.0,87254.0,0.0484]
[1745228819132,0.0004221,87271.0,87255.0,0.00229188]
[1745228819286,0.0491224,87276.0,87255.0,0.00229188]
[1745228820172,0.0004224,87276.0,87255.0,0.00229188]
[1745228823287,0.0004224,87276.0,87254.0,0.0484]
[1745228823459,0.0004224,87276.0,87255.0,0.34]
[1745228825250,0.0004224,87276.0,87256.0,0.00229178]
[1745228830278,0.0004224,87276.0,87257.0,0.34]
[1745228832368,0.0004224,87276.0,87261.0,0.34]
[1745228833650,0.0004224,87276.0,87261.0,0.34849904]
[1745228834759,0.0004224,87276.0,87261.0,0.12794695]
[1745228834965,0.0004224,87276.0,87262.0,0.05139162]
[1745228838554,0.00034953,87276.0,87262.0,0.0491]
[1745228840168,0.00034953,87276.0,87263.0,0.0022916]
[1745228841122,0.00034953,87276.0,87262.0,0.3891]
[1745228842336,0.00034953,87276.0,87262.0,0.19511049]
[1745228843898,0.00034953,87276.0,87263.0,0.0022916]
[1745228846503,0.00034953,87276.0,87262.0,0.19511049]
[1745228846848,0.00034953,87276.0,87263.0,0.0022916]
[1745228847489,0.00034953,87276.0,87262.0,0.19511049]
[1745228849651,0.00034953,87276.0,87263.0,0.0022916]
[1745228860567,0.00034953,87276.0,87265.0,0.34]
[1745228860790,0.00034953,87276.0,87267.0,0.34]
[1745228860996,0.00034953,87276.0,87269.0,0.34]
[1745228861894,0.00033112,87276.0,87269.0,0.34]
[1745228869929,0.00037112,87276.0,87269.0,0.34]
[1745228874449,0.04713036,87287.0,87269.0,0.34]
[1745228877021,0.04702692,87287.0,87269.0,0.34]
[1745228877466,0.04706692,87287.0,87269.0,0.34]
[1745228879284,0.04695724,87287.0,87269.0,0.34]
[1745228880946,0.04683473,87287.0,87269.0,0.34]
[1745228883248,0.04683473,87287.0,87270.0,0.00229141]
[1745228883925,0.04683473,87287.0,87269.0,0.34]
[1745228884867,0.04683473,87287.0,87270.0,0.00229141]
[1745228885076,0.04683473,87287.0,87269.0,0.34]
[1745228887136,8e-05,87287.0,87271.0,0.34]
[1745228887316,0.0001526,87287.0,87272.0,0.00229133]
[1745228894784,0.0001526,87287.0,87271.0,0.45944791]
[1745228895185,0.0488,87286.0,87271.0,0.45944791]
[1745228903204,0.04871419,87286.0,87271.0,0.45944791]
[1745228906583,0.0001526,87287.0,87271.0,0.45944791]
[1745228907099,0.04809495,87291.0,87271.0,0.45944791]
[1745228907277,0.04809495,87291.0,87271.0,0.45952051]
[1745228908022,0.04800309,87291.0,87271.0,0.45952051]
[1745228908151,0.0479799,87291.0,87271.0,0.45952051]
[1745228909847,0.04788591,87291.0,87271.0,0.45952051]
[1745228911661,0.04792591,87291.0,87271.0,0.45952051]
[1745228912484,0.04796591,87291.0,87271.0,0.45952051]
[1745228913651,0.04800591,87291.0,87271.0,0.45952051]
[1745228915360,0.04778947,87291.0,87271.0,0.45952051]
[1745228916204,0.04772988,87291.0,87271.0,0.45952051]
[1745228918607,0.02491335,87291.0,87288.0,0.01145632]
[1745228918945,0.02591335,87291.0,87288.0,0.01145632]
[1745228922672,0.0491,87289.0,87288.0,0.01145632]
[1745228922873,0.16854791,87289.0,87288.0,0.01145632]
[1745228923089,0.17921815,87289.0,87288.0,0.01145632]
[1745228923363,0.20055739,87289.0,87288.0,0.01145632]
[1745228924644,0.20155739,87289.0,87288.0,0.01145632]
[1745228924851,0.19088715,87289.0,87288.0,0.01145632]
[1745228925051,0.16954791,87289.0,87288.0,0.01145632]
[1745228929495,0.17202034,87289.0,87262.0,0.34]
[1745228929696,0.11944791,87288.0,87261.0,0.03110609]
[1745228929999,0.0028645,87287.0,87262.0,0.00096498]
[1745228932121,0.0028645,87287.0,87261.0,0.03966604]
[1745228932323,0.0038645,87287.0,87262.0,0.0473]
[1745228932651,0.0038645,87287.0,87263.0,0.00096498]
[1745228933603,0.0038645,87287.0,87262.0,0.0473]
[1745228934010,0.0975423,87293.0,87262.0,0.0473]
[1745228934011,0.09716,87316.0,87273.0,0.0475]
[1745228934210,0.03696386,87304.0,87275.0,0.34]
[1745228934440,0.03696386,87304.0,87277.0,0.34]
[1745228934639,0.03696386,87304.0,87280.0,0.0475]
[1745228934859,0.03696386,87304.0,87281.0,0.34]
[1745228935262,0.001,87287.0,87283.0,0.43185741]
[1745228935466,0.001,87287.0,87284.0,0.00096362]
[1745228935848,0.0341,87304.0,87284.0,0.00096362]
[1745228936052,0.0351,87304.0,87284.0,0.00096362]
[1745228936707,0.0341,87304.0,87284.0,0.00096362]
[1745228937236,0.0341,87304.0,87284.0,0.34936363]
[1745228937536,0.0341,87304.0,87284.0,0.34840001]
[1745228938672,0.1203,87344.0,87284.0,0.34840001]
[1745228938673,0.10193323,87322.0,87304.0,0.0473]
[1745228938888,0.00190021,87321.0,87303.0,0.3875]
[1745228939090,0.00190021,87321.0,87303.0,0.40242816]
[1745228939990,0.0020195,87321.0,87303.0,0.40242816]
[1745228940973,0.0020195,87321.0,87303.0,0.06242816]
[1745228942297,0.0030195,87321.0,87303.0,0.06242816]
[1745228942802,0.00111929,87321.0,87303.0,0.06242816]
[1745228943006,0.0478,87343.0,87318.0,0.3873]
[1745228943216,0.11944791,87342.0,87318.0,0.3873]
[1745228945805,0.11944791,87342.0,87318.0,0.3956878]
[1745228947850,0.11944791,87342.0,87318.0,0.19171104]
[1745228949303,0.11944791,87342.0,87318.0,0.19400128]
[1745228950965,0.0455,87341.0,87318.0,0.19171104]
[1745228951167,0.0455,87339.0,87318.0,0.19171104]
[1745228951372,0.0455,87339.0,87319.0,0.034297]
[1745228955085,0.0455,87337.0,87318.0,0.0083878]
[1745228955303,0.0455,87337.0,87299.0,0.09704]
[1745228955304,0.0455,87334.0,87294.0,0.4596]
[1745228955560,0.0455,87331.0,87301.0,0.034303]
[1745228955732,0.047,87332.0,87301.0,0.034303]
[1745228955733,0.0455,87329.0,87303.0,0.02400146]
[1745228955940,0.11944791,87328.0,87303.0,0.00011929]
[1745228956152,0.0455,87327.0,87303.0,0.00011929]
[1745228956293,0.11944791,87326.0,87303.0,0.00011929]
[1745228956501,0.0455,87325.0,87303.0,0.00011929]
[1745228956702,0.11944791,87324.0,87303.0,0.00011929]
[1745228956939,0.0455,87323.0,87303.0,0.00011929]
[1745228957121,0.11944791,87322.0,87303.0,0.00011929]
[1745228958942,0.0455,87321.0,87303.0,0.00011929]
[1745228959348,0.0455,87321.0,87303.0,0.01488221]
[1745228959778,0.11944791,87320.0,87303.0,0.02366321]
[1745228959972,0.0455,87319.0,87303.0,0.02366321]